fUSD/lending_fUSD_20250823
["ID","MTS","AMOUNT","RATE_DAILY","PERIOD"]
[381009685,1755939070313,-1591.54,0.000137,2]
[381009686,1755939070323,-2306.16,0.00013972,2]
[381009687,1755939070333,-444.12,0.00013972,2]
[381009688,1755939070683,-6511.26758435,0.00014246,2]
[381009689,1755939070727,-2283.34352654,0.00014246,2]
[381009690,1755939070748,-400.0,0.00014246,2]
[381009691,1755939070759,-400.0,0.00014246,2]
[381009692,1755939070770,-799.72,0.00014246,2]
[381009693,1755939070780,-400.0,0.00014246,2]
[381009694,1755939070791,-400.0,0.00014246,2]
[381009695,1755939070800,-541.7,0.00014246,2]
[381009696,1755939070810,-400.0,0.00014246,2]
[381009697,1755939070820,-606.2,0.00014246,2]
[381009698,1755939070829,-400.0,0.00014246,2]
[381009699,1755939070839,-400.0,0.00014246,2]
[381009700,1755939070849,-376.26475476,0.00014246,2]
[381009701,1755939070859,-531.92,0.00014246,2]
[381009702,1755939070868,-400.0,0.00014246,2]
[381009703,1755939070878,-535.01704807,0.00014246,2]
[381009704,1755939070888,-870.85,0.00014246,2]
[381009705,1755939070898,-400.0,0.00014246,2]
[381009706,1755939070907,-489.91,0.00014246,2]
[381009707,1755939070918,-477.46585964,0.00014246,2]
[381009708,1755939070928,-463.63,0.00014246,2]
[381009709,1755939070937,-609.72,0.00014246,2]
[381009710,1755939070947,-400.0,0.00014246,2]
[381009711,1755939070956,-400.0,0.00014246,2]
[381009712,1755939070965,-400.0,0.00014246,2]
[381009713,1755939070975,-400.0,0.00014246,2]
[381009714,1755939070984,-400.0,0.00014246,2]
[381009715,1755939070994,-541.93,0.00014246,2]
[381009716,1755939071003,-400.0,0.00014246,2]
[381009717,1755939071013,-400.0,0.00014246,2]
[381009718,1755939071023,-400.0,0.00014246,2]
[381009719,1755939071032,-400.0,0.00014246,2]
[381009720,1755939071042,-400.0,0.00014246,2]
[381009721,1755939071051,-400.0,0.00014246,2]
[381009722,1755939071060,-400.0,0.00014246,2]
[381009723,1755939071070,-400.0,0.00014246,2]
[381009724,1755939071079,-559.49,0.00014246,2]
[381009725,1755939071089,-400.0,0.00014246,2]
[381009726,1755939071098,-400.0,0.00014246,2]
[381009727,1755939071108,-441.42,0.00014246,2]
[381009728,1755939071117,-400.0,0.00014246,2]
[381009729,1755939071128,-400.0,0.00014246,2]
[381009730,1755939071137,-410.06218493,0.00014246,2]
[381009731,1755939071147,-490.21,0.00014246,2]
[381009732,1755939071156,-400.0,0.00014246,2]
[381009733,1755939071166,-400.0,0.00014246,2]
[381009734,1755939071176,-400.0,0.00014246,2]
[381009735,1755939071186,-400.0,0.00014246,2]
[381009736,1755939071195,-400.0,0.00014246,2]
[381009737,1755939071205,-400.0,0.00014246,2]
[381009738,1755939071214,-400.0,0.00014246,2]
[381009739,1755939071224,-466.59,0.00014246,2]
[381009740,1755939071234,-400.0,0.00014246,2]
[381009741,1755939071243,-331.5140232,0.00014246,2]
[381009742,1755939071253,-404.97,0.00014246,2]
[381009743,1755939071263,-400.0,0.00014246,2]
[381009744,1755939071274,-623.74,0.00014246,2]
[381009745,1755939071284,-400.0,0.00014246,2]
[381009746,1755939071294,-400.0,0.00014246,2]
[381009747,1755939071303,-400.0,0.00014246,2]
[381009748,1755939071313,-770.94,0.00014246,2]
[381009749,1755939071322,-400.0,0.00014246,2]
[381009750,1755939071332,-731.85,0.00014246,2]
[381009751,1755939071341,-689.5,0.00014246,2]
[381009752,1755939071351,-498.1,0.00014246,2]
[381009753,1755939071361,-568.76,0.00014246,2]
[381009754,1755939071371,-400.0,0.00014246,2]
[381009755,1755939071381,-400.0,0.00014246,2]
[381009756,1755939071391,-414.07,0.00014246,2]
[381009757,1755939071401,-467.88668929,0.00014246,2]
[381009758,1755939071411,-635.33,0.00014246,2]
[381009759,1755939071421,-400.0,0.00014246,2]
[381009760,1755939071431,-586.22,0.00014246,2]
[381009761,1755939071440,-400.0,0.00014246,2]
[381009762,1755939071450,-400.0,0.00014246,2]
[381009763,1755939071460,-400.0,0.00014246,2]
[381009764,1755939071470,-416.31,0.00014246,2]
[381009765,1755939071480,-443.11,0.00014246,2]
[381009766,1755939071489,-471.64,0.00014246,2]
[381009767,1755939071499,-400.0,0.00014246,2]
[381009768,1755939071510,-820.85,0.00014246,2]
[381009769,1755939071519,-400.0,0.00014246,2]
[381009770,1755939071529,-616.22,0.00014246,2]
[381009771,1755939071539,-708.14,0.00014246,2]
[381009772,1755939071549,-400.0,0.00014246,2]
[381009773,1755939071558,-400.0,0.00014246,2]
[381009774,1755939071570,-1000.0,0.00014246,2]
[381009775,1755939071582,-400.0,0.00014246,2]
[381009776,1755939071592,-400.0,0.00014246,2]
[381009777,1755939071602,-400.0,0.00014246,2]
[381009778,1755939071612,-650.54,0.00014246,2]
[381009779,1755939071622,-708.36,0.00014246,2]
[381009780,1755939071633,-400.0,0.00014246,2]
[381009781,1755939071643,-400.0,0.00014246,2]
[381009782,1755939071653,-400.0,0.00014246,2]
[381009783,1755939071663,-400.0,0.00014246,2]
[381009784,1755939071672,-646.95,0.00014246,2]
[381009785,1755939071682,-400.0,0.00014246,2]
[381009786,1755939071694,-767.45,0.00014246,2]
[381009787,1755939071708,-400.0,0.00014246,2]
[381009788,1755939071718,-400.0,0.00014246,2]
[381009789,1755939071728,-593.91,0.00014246,2]
[381009790,1755939071739,-400.0,0.00014246,2]
[381009791,1755939071748,-400.0,0.00014246,2]
[381009792,1755939071757,-400.0,0.00014246,2]
[381009793,1755939071768,-485.54,0.00014246,2]
[381009794,1755939071779,-400.0,0.00014246,2]
[381009795,1755939071789,-400.0,0.00014246,2]
[381009796,1755939071798,-400.0,0.00014246,2]
[381009797,1755939071807,-517.02,0.00014246,2]
[381009798,1755939071817,-400.0,0.00014246,2]
[381009799,1755939071827,-400.0,0.00014246,2]
[381009800,1755939071836,-400.0,0.00014246,2]
[381009801,1755939071845,-400.0,0.00014246,2]
[381009802,1755939071855,-400.0,0.00014246,2]
[381009803,1755939071865,-390.99171952,0.00014246,2]
[381009804,1755939071875,-332.02,0.00014246,2]
[381009805,1755939071885,-400.0,0.00014246,2]
[381009806,1755939071896,-400.0,0.00014246,2]
[381009807,1755939071906,-400.0,0.00014246,2]
[381009808,1755939071915,-400.0,0.00014246,2]
[381009809,1755939071925,-459.2,0.00014246,2]
[381009810,1755939071935,-411.84,0.00014246,2]
[381009811,1755939071944,-1058.0,0.00014246,2]
[381009812,1755939071953,-519.43,0.00014246,2]
[381009813,1755939071963,-433.04,0.00014246,2]
[381009814,1755939071973,-548.51,0.00014246,2]
[381009815,1755939071982,-403.32987509,0.00014246,2]
[381009816,1755939071991,-400.0,0.00014246,2]
[381009817,1755939072001,-402.5538804,0.00014246,2]
[381009818,1755939072011,-355.42484898,0.00014246,2]
[381009819,1755939072021,-594.2,0.00014246,2]
[381009820,1755939072031,-400.0,0.00014246,2]
[381009821,1755939072040,-400.0,0.00014246,2]
[381009822,1755939072050,-400.0,0.00014246,2]
[381009823,1755939072060,-400.0,0.00014246,2]
[381009824,1755939072070,-400.0,0.00014246,2]
[381009825,1755939072080,-400.0,0.00014246,2]
[381009826,1755939072090,-402.32,0.00014246,2]
[381009827,1755939072100,-400.0,0.00014246,2]
[381009828,1755939072112,-417.12,0.00014246,2]
[381009829,1755939072122,-400.0,0.00014246,2]
[381009830,1755939072132,-400.0,0.00014246,2]
[381009831,1755939072143,-870.8,0.00014246,2]
[381009832,1755939072153,-402.52753291,0.00014246,2]
[381009833,1755939072162,-402.80820599,0.00014246,2]
[381009834,1755939072171,-400.0,0.00014246,2]
[381009835,1755939072181,-553.23,0.00014246,2]
[381009836,1755939072190,-400.0,0.00014246,2]
[381009837,1755939072201,-400.0,0.00014246,2]
[381009838,1755939072211,-400.0,0.00014246,2]
[381009839,1755939072220,-577.65,0.00014246,2]
[381009840,1755939072230,-400.0,0.00014246,2]
[381009841,1755939072240,-400.0,0.00014246,2]
[381009842,1755939072251,-400.0,0.00014246,2]
[381009843,1755939072263,-400.0,0.00014246,2]
[381009844,1755939072273,-400.0,0.00014246,2]
[381009845,1755939072284,-400.0,0.00014246,2]
[381009846,1755939072294,-579.04,0.00014246,2]
[381009847,1755939072305,-501.15,0.00014246,2]
[381009848,1755939072314,-240.87,0.00014246,2]
[381009849,1755939072325,-400.0,0.00014246,2]
[381009850,1755939072335,-400.0,0.00014246,2]
[381009851,1755939072344,-553.23,0.00014246,2]
[381009852,1755939072354,-967.41,0.00014246,2]
[381009853,1755939072366,-400.0,0.00014246,2]
[381009854,1755939072375,-400.0,0.00014246,2]
[381009855,1755939072387,-585.83,0.00014246,2]
[381009856,1755939072397,-773.29,0.00014246,2]
[381009857,1755939072406,-400.0,0.00014246,2]
[381009858,1755939072416,-899.14,0.00014246,2]
[381009859,1755939072426,-400.0,0.00014246,2]
[381009860,1755939072436,-484.77,0.00014246,2]
[381009861,1755939072446,-400.0,0.00014246,2]
[381009862,1755939072455,-400.0,0.00014246,2]
[381009863,1755939072465,-400.0,0.00014246,2]
[381009864,1755939072474,-400.0,0.00014246,2]
[381009865,1755939072483,-400.0,0.00014246,2]
[381009866,1755939072493,-400.0,0.00014246,2]
[381009867,1755939072503,-400.0,0.00014246,2]
[381009868,1755939072513,-400.0,0.00014246,2]
[381009869,1755939072522,-400.0,0.00014246,2]
[381009870,1755939072532,-400.0,0.00014246,2]
[381009871,1755939072542,-400.0,0.00014246,2]
[381009872,1755939072552,-400.0,0.00014246,2]
[381009873,1755939072561,-400.0,0.00014246,2]
[381009874,1755939072571,-509.56,0.00014246,2]
[381009875,1755939072583,-400.0,0.00014246,2]
[381009876,1755939072593,-810.57,0.00014246,2]
[381009877,1755939072603,-400.0,0.00014246,2]
[381009878,1755939072612,-400.0,0.00014246,2]
[381009879,1755939072622,-782.76,0.00014246,2]
[381009880,1755939072631,-400.0,0.00014246,2]
[381009881,1755939072641,-400.0,0.00014246,2]
[381009882,1755939072652,-400.0,0.00014246,2]
[381009883,1755939072661,-555.35,0.00014246,2]
[381009884,1755939072671,-400.0,0.00014246,2]
[381009885,1755939072681,-1061.96,0.00014246,2]
[381009886,1755939072691,-188.98,0.00014246,2]
[381009887,1755939072703,-400.0,0.00014246,2]
[381009888,1755939072714,-400.0,0.00014246,2]
[381009889,1755939072724,-688.6,0.00014246,2]
[381009890,1755939072733,-400.0,0.00014246,2]
[381009891,1755939072744,-286.19499153,0.00014246,2]
[381009892,1755939072753,-400.0,0.00014246,2]
[381009893,1755939072763,-1035.28,0.00014246,2]
[381009894,1755939072773,-400.0,0.00014246,2]
[381009895,1755939072783,-400.0,0.00014246,2]
[381009896,1755939072793,-400.0,0.00014246,2]
[381009897,1755939072802,-400.0,0.00014246,2]
[381009898,1755939072811,-400.0,0.00014246,2]
[381009899,1755939072821,-615.93,0.00014246,2]
[381009900,1755939072831,-559.08,0.00014246,2]
[381009901,1755939072840,-400.0,0.00014246,2]
[381009902,1755939072850,-400.0,0.00014246,2]
[381009903,1755939072862,-761.04,0.00014246,2]
[381009904,1755939072872,-400.0,0.00014246,2]
[381009905,1755939072884,-407.06,0.00014246,2]
[381009906,1755939072895,-426.75,0.00014246,2]
[381009907,1755939072906,-780.02,0.00014246,2]
[381009908,1755939072916,-400.0,0.00014246,2]
[381009909,1755939072927,-400.0,0.00014246,2]
[381009910,1755939072937,-400.0,0.00014246,2]
[381009911,1755939072948,-400.0,0.00014246,2]
[381009912,1755939072958,-400.0,0.00014246,2]
[381009913,1755939072968,-220.0,0.00014246,2]
[381009914,1755939072978,-560.47,0.00014246,2]
[381009915,1755939072988,-708.94,0.00014246,2]
[381009916,1755939072998,-400.0,0.00014246,2]
[381009917,1755939073008,-632.18,0.00014246,2]
[381009918,1755939073018,-634.99,0.00014246,2]
[381009919,1755939073027,-513.36,0.00014246,2]
[381009920,1755939073037,-959.9,0.00014246,2]
[381009921,1755939073047,-400.0,0.00014246,2]
[381009922,1755939073057,-400.0,0.00014246,2]
[381009923,1755939073067,-470.78,0.00014246,2]
[381009924,1755939073076,-400.0,0.00014246,2]
[381009925,1755939073086,-400.0,0.00014246,2]
[381009926,1755939073189,-425.55,0.00014246,2]
[381009927,1755939073199,-915.97,0.00014246,2]
[381009928,1755939073211,-400.0,0.00014246,2]
[381009929,1755939073220,-516.73635857,0.00014246,2]
[381009930,1755939073230,-623.72,0.00014246,2]
[381009931,1755939073239,-578.23,0.00014246,2]
[381009932,1755939073249,-400.0,0.00014246,2]
[381009933,1755939073259,-400.0,0.00014246,2]
[381009934,1755939073268,-400.0,0.00014246,2]
[381009935,1755939073277,-400.0,0.00014246,2]
[381009936,1755939073288,-576.67,0.00014246,2]
[381009937,1755939073298,-404.26,0.00014246,2]
[381009938,1755939073307,-400.0,0.00014246,2]
[381009939,1755939073317,-604.46,0.00014246,2]
[381009940,1755939073327,-400.0,0.00014246,2]
[381009941,1755939073336,-459.88,0.00014246,2]
[381009942,1755939073346,-488.37,0.00014246,2]
[381009943,1755939073356,-653.05,0.00014246,2]
[381009944,1755939073365,-540.72,0.00014246,2]
[381009945,1755939073375,-400.0,0.00014246,2]
[381009946,1755939073384,-448.68,0.00014246,2]
[381009947,1755939073394,-531.6,0.00014246,2]
[381009948,1755939073404,-713.87,0.00014246,2]
[381009949,1755939073414,-526.18,0.00014246,2]
[381009950,1755939073423,-485.29572051,0.00014246,2]
[381009951,1755939073433,-629.81,0.00014246,2]
[381009952,1755939073443,-400.0,0.00014246,2]
[381009953,1755939073452,-400.0,0.00014246,2]
[381009954,1755939073462,-400.0,0.00014246,2]
[381009955,1755939073472,-870.69,0.00014246,2]
[381009956,1755939073482,-400.0,0.00014246,2]
[381009957,1755939073491,-400.0,0.00014246,2]
[381009958,1755939073501,-579.06,0.00014246,2]
[381009959,1755939073510,-670.57,0.00014246,2]
[381009960,1755939073520,-400.0,0.00014246,2]
[381009961,1755939073529,-400.0,0.00014246,2]
[381009962,1755939073538,-400.0,0.00014246,2]
[381009963,1755939073548,-400.0,0.00014246,2]
[381009964,1755939073557,-551.87,0.00014246,2]
[381009965,1755939073567,-658.16,0.00014246,2]
[381009966,1755939073581,-683.83,0.00014246,2]
[381009967,1755939073590,-444.96,0.00014246,2]
[381009968,1755939073602,-400.0,0.00014246,2]
[381009969,1755939073612,-400.0,0.00014246,2]
[381009970,1755939073622,-400.0,0.00014246,2]
[381009971,1755939073631,-759.2,0.00014246,2]
[381009972,1755939073641,-406.78,0.00014246,2]
[381009973,1755939073651,-400.0,0.00014246,2]
[381009974,1755939073661,-769.51,0.00014246,2]
[381009975,1755939073672,-400.0,0.00014246,2]
[381009976,1755939073682,-417.75,0.00014246,2]
[381009977,1755939073692,-400.0,0.00014246,2]
[381009978,1755939073705,-630.54,0.00014246,2]
[381009979,1755939073714,-551.04,0.00014246,2]
[381009980,1755939073724,-441.83,0.00014246,2]
[381009981,1755939073734,-400.0,0.00014246,2]
[381009982,1755939073744,-400.0,0.00014246,2]
[381009983,1755939073755,-400.0,0.00014246,2]
[381009984,1755939073764,-826.78,0.00014246,2]
[381009985,1755939073775,-863.26,0.00014246,2]
[381009986,1755939073785,-549.02,0.00014246,2]
[381009987,1755939073794,-400.0,0.00014246,2]
[381009988,1755939073804,-663.25,0.00014246,2]
[381009989,1755939073813,-400.0,0.00014246,2]
[381009990,1755939073823,-610.1,0.00014246,2]
[381009991,1755939073833,-400.0,0.00014246,2]
[381009992,1755939073842,-400.0,0.00014246,2]
[381009993,1755939073852,-866.78,0.00014246,2]
[381009994,1755939073862,-400.0,0.00014246,2]
[381009995,1755939073872,-624.4,0.00014246,2]
[381009996,1755939073883,-457.29,0.00014246,2]
[381009997,1755939073893,-400.0,0.00014246,2]
[381009998,1755939073903,-586.53,0.00014246,2]
[381009999,1755939073913,-400.0,0.00014246,2]
[381010000,1755939073923,-301.80064225,0.00014246,2]
[381010001,1755939073932,-400.0,0.00014246,2]
[381010002,1755939073943,-648.05,0.00014246,2]
[381010003,1755939073952,-535.11,0.00014246,2]
[381010004,1755939073962,-400.0,0.00014246,2]
[381010005,1755939073973,-400.0,0.00014246,2]
[381010006,1755939073983,-400.0,0.00014246,2]
[381010007,1755939073993,-400.0,0.00014246,2]
[381010008,1755939074002,-484.11,0.00014246,2]
[381010009,1755939074011,-400.0,0.00014246,2]
[381010010,1755939074021,-429.85,0.00014246,2]
[381010011,1755939074031,-857.77,0.00014246,2]
[381010012,1755939074041,-400.0,0.00014246,2]
[381010013,1755939074050,-471.8,0.00014246,2]
[381010014,1755939074060,-228.40158641,0.00014246,2]
[381010015,1755939074070,-672.25,0.00014246,2]
[381010016,1755939074080,-400.0,0.00014246,2]
[381010017,1755939074090,-515.53,0.00014246,2]
[381010018,1755939074100,-903.05,0.00014246,2]
[381010019,1755939074109,-400.0,0.00014246,2]
[381010020,1755939074119,-441.95767574,0.00014246,2]
[381010021,1755939074129,-400.0,0.00014246,2]
[381010022,1755939074139,-636.23,0.00014246,2]
[381010023,1755939074148,-666.16,0.00014246,2]
[381010024,1755939074158,-665.37,0.00014246,2]
[381010025,1755939074168,-400.0,0.00014246,2]
[381010026,1755939074177,-400.0,0.00014246,2]
[381010027,1755939074187,-505.15,0.00014246,2]
[381010028,1755939074198,-455.9,0.00014246,2]
[381010029,1755939074207,-400.0,0.00014246,2]
[381010030,1755939074217,-796.5,0.00014246,2]
[381010031,1755939074227,-400.0,0.00014246,2]
[381010032,1755939074236,-411.02,0.00014246,2]
[381010033,1755939074246,-567.05,0.00014246,2]
[381010034,1755939074255,-713.57,0.00014246,2]
[381010035,1755939074265,-400.0,0.00014246,2]
[381010036,1755939074274,-521.54,0.00014246,2]
[381010037,1755939074284,-400.0,0.00014246,2]
[381010038,1755939074294,-400.0,0.00014246,2]
[381010039,1755939074303,-621.21,0.00014246,2]
[381010040,1755939074313,-607.82,0.00014246,2]
[381010041,1755939074322,-400.0,0.00014246,2]
[381010042,1755939074332,-634.66,0.00014246,2]
[381010043,1755939074342,-586.45,0.00014246,2]
[381010044,1755939074352,-1019.45,0.00014246,2]
[381010045,1755939074361,-543.66,0.00014246,2]
[381010046,1755939074371,-400.0,0.00014246,2]
[381010047,1755939074381,-539.72,0.00014246,2]
[381010048,1755939074390,-400.0,0.00014246,2]
[381010049,1755939074400,-1013.56,0.00014246,2]
[381010050,1755939074409,-534.08,0.00014246,2]
[381010051,1755939074418,-585.59,0.00014246,2]
[381010052,1755939074428,-400.0,0.00014246,2]
[381010053,1755939074438,-474.02,0.00014246,2]
[381010054,1755939074447,-664.02,0.00014246,2]
[381010055,1755939074457,-400.0,0.00014246,2]
[381010056,1755939074466,-400.0,0.00014246,2]
[381010057,1755939074476,-400.0,0.00014246,2]
[381010058,1755939074486,-400.0,0.00014246,2]
[381010059,1755939074495,-400.0,0.00014246,2]
[381010060,1755939074505,-726.3,0.00014246,2]
[381010061,1755939074514,-400.0,0.00014246,2]
[381010062,1755939074524,-400.0,0.00014246,2]
[381010063,1755939074533,-674.06,0.00014246,2]
[381010064,1755939074543,-400.0,0.00014246,2]
[381010065,1755939074552,-979.75,0.00014246,2]
[381010066,1755939074561,-400.0,0.00014246,2]
[381010067,1755939074571,-700.09,0.00014246,2]
[381010068,1755939074580,-400.0,0.00014246,2]
[381010069,1755939074594,-646.88,0.00014246,2]
[381010070,1755939074604,-400.0,0.00014246,2]
[381010071,1755939074613,-461.38,0.00014246,2]
[381010072,1755939074622,-400.0,0.00014246,2]
[381010073,1755939074631,-415.3,0.00014246,2]
[381010074,1755939074641,-620.78,0.00014246,2]
[381010075,1755939074651,-875.1,0.00014246,2]
[381010076,1755939074660,-400.0,0.00014246,2]
[381010077,1755939074670,-843.51,0.00014246,2]
[381010078,1755939074679,-400.0,0.00014246,2]
[381010079,1755939074689,-610.16,0.00014246,2]
[381010080,1755939074701,-915.26,0.00014246,2]
[381010081,1755939074711,-458.39,0.00014246,2]
[381010082,1755939074720,-1649.51,0.00014246,2]
[381010083,1755939074729,-400.0,0.00014246,2]
[381010084,1755939074739,-519.01,0.00014246,2]
[381010085,1755939074748,-400.0,0.00014246,2]
[381010086,1755939074758,-400.0,0.00014246,2]
[381010087,1755939074767,-510.92,0.00014246,2]
[381010088,1755939074778,-400.0,0.00014246,2]
[381010089,1755939074787,-654.9,0.00014246,2]
[381010090,1755939074797,-400.0,0.00014246,2]
[381010091,1755939074806,-400.0,0.00014246,2]
[381010092,1755939074815,-400.0,0.00014246,2]
[381010093,1755939074825,-782.17,0.00014246,2]
[381010094,1755939074835,-933.04,0.00014246,2]
[381010095,1755939074844,-400.0,0.00014246,2]
[381010096,1755939074854,-842.2,0.00014246,2]
[381010097,1755939074863,-718.14,0.00014246,2]
[381010098,1755939074873,-400.0,0.00014246,2]
[381010099,1755939074884,-400.0,0.00014246,2]
[381010100,1755939074893,-445.25,0.00014246,2]
[381010101,1755939074903,-400.0,0.00014246,2]
[381010102,1755939074913,-400.0,0.00014246,2]
[381010103,1755939074922,-579.35,0.00014246,2]
[381010104,1755939074939,-594.21,0.00014246,2]
[381010105,1755939074955,-400.0,0.00014246,2]
[381010106,1755939074965,-726.96,0.00014246,2]
[381010107,1755939074975,-1117.58,0.00014246,2]
[381010108,1755939074985,-736.11,0.00014246,2]
[381010109,1755939074999,-755.16,0.00014246,2]
[381010110,1755939075008,-587.73,0.00014246,2]
[381010111,1755939075018,-400.0,0.00014246,2]
[381010112,1755939075027,-535.56,0.00014246,2]
[381010113,1755939075037,-494.23,0.00014246,2]
[381010114,1755939075046,-928.82,0.00014246,2]
[381010115,1755939075055,-508.72,0.00014246,2]
[381010116,1755939075065,-569.71,0.00014246,2]
[381010117,1755939075075,-930.32,0.00014246,2]
[381010118,1755939075084,-400.0,0.00014246,2]
[381010119,1755939075095,-400.0,0.00014246,2]
[381010120,1755939075107,-363.31360158,0.00014246,2]
[381010121,1755939075118,-662.62,0.00014246,2]
[381010122,1755939075128,-400.0,0.00014246,2]
[381010123,1755939075144,-400.0,0.00014246,2]
[381010124,1755939075161,-400.0,0.00014246,2]
[381010125,1755939075172,-400.0,0.00014246,2]
[381010126,1755939075183,-790.37,0.00014246,2]
[381010127,1755939075193,-402.16090031,0.00014246,2]
[381010128,1755939075203,-400.0,0.00014246,2]
[381010129,1755939075214,-400.0,0.00014246,2]
[381010130,1755939075223,-400.0,0.00014246,2]
[381010131,1755939075234,-510.79,0.00014246,2]
[381010132,1755939075245,-541.18,0.00014246,2]
[381010133,1755939075256,-400.0,0.00014246,2]
[381010134,1755939075268,-1407.45,0.00014246,2]
[381010135,1755939075278,-411.9,0.00014246,2]
[381010136,1755939075288,-437.43,0.00014246,2]
[381010137,1755939075300,-400.0,0.00014246,2]
[381010138,1755939075311,-1005.61,0.00014246,2]
[381010139,1755939075321,-995.95,0.00014246,2]
[381010140,1755939075331,-567.71,0.00014246,2]
[381010141,1755939075342,-691.75,0.00014246,2]
[381010142,1755939075352,-1436.18,0.00014246,2]
[381010143,1755939075362,-400.0,0.00014246,2]
[381010144,1755939075372,-400.0,0.00014246,2]
[381010145,1755939075382,-778.26,0.00014246,2]
[381010146,1755939075392,-708.04,0.00014246,2]
[381010147,1755939075403,-408.35,0.00014246,2]
[381010148,1755939075413,-400.0,0.00014246,2]
[381010149,1755939075422,-400.0,0.00014246,2]
[381010150,1755939075432,-549.96,0.00014246,2]
[381010151,1755939075442,-400.0,0.00014246,2]
[381010152,1755939075452,-460.77,0.00014246,2]
[381010153,1755939075462,-400.68735311,0.00014246,2]
[381010154,1755939075473,-480.88,0.00014246,2]
[381010155,1755939075483,-400.0,0.00014246,2]
[381010156,1755939075492,-671.12,0.00014246,2]
[381010157,1755939075501,-400.0,0.00014246,2]
[381010158,1755939075511,-400.0,0.00014246,2]
[381010159,1755939075519,-528.45,0.00014246,2]
[381010160,1755939075528,-400.0,0.00014246,2]
[381010161,1755939075538,-2771.96,0.00014246,2]
[381010162,1755939075548,-400.0,0.00014246,2]
[381010163,1755939075557,-400.0,0.00014246,2]
[381010164,1755939075566,-419.21,0.00014246,2]
[381010165,1755939075576,-400.0,0.00014246,2]
[381010166,1755939075586,-400.0,0.00014246,2]
[381010167,1755939075602,-640.9,0.00014246,2]
[381010168,1755939075611,-667.47,0.00014246,2]
[381010169,1755939075621,-400.0,0.00014246,2]
[381010170,1755939075631,-400.0,0.00014246,2]
[381010171,1755939075640,-400.0,0.00014246,2]
[381010172,1755939075650,-578.77,0.00014246,2]
[381010173,1755939075659,-400.0,0.00014246,2]
[381010174,1755939075669,-400.0,0.00014246,2]
[381010175,1755939075678,-400.0,0.00014246,2]
[381010176,1755939075688,-726.43,0.00014246,2]
[381010177,1755939075699,-564.18,0.00014246,2]
[381010178,1755939075710,-400.0,0.00014246,2]
[381010179,1755939075720,-400.0,0.00014246,2]
[381010180,1755939075730,-400.0,0.00014246,2]
[381010181,1755939075740,-548.76,0.00014246,2]
[381010182,1755939075749,-490.16,0.00014246,2]
[381010183,1755939075759,-400.0,0.00014246,2]
[381010184,1755939075769,-400.0,0.00014246,2]